[Event "*** Titled Tuesday Blitz"]
[Site "Chess.com"]
[Date "2020.01.07"]
[Round "3"]
[White "igorkovalenko"]
[Black "Sven_Tica"]
[Result "1/2-1/2"]
[WhiteElo "2905"]
[BlackElo "2665"]
[TimeControl "180+2"]
[EndTime "13:40:21 PST"]
[Termination "Game drawn by agreement"]

1. d4 {[%clk 0:03:01.9]} 1... d5 {[%clk 0:03:01.3]} 2. c4 {[%clk 0:02:53.6]}
2... e6 {[%clk 0:03:02.4]} 3. Nc3 {[%clk 0:02:54.4]} 3... Nf6 {[%clk 0:03:03.8]}
4. cxd5 {[%clk 0:02:55.5]} 4... exd5 {[%clk 0:03:05.7]} 5. Bg5 {[%clk
0:02:55.9]} 5... c6 {[%clk 0:03:07.1]} 6. e3 {[%clk 0:02:57.4]} 6... Be6 {[%clk
0:03:07.9]} 7. Bd3 {[%clk 0:02:57.8]} 7... Nbd7 {[%clk 0:03:09.6]} 8. f4 {[%clk
0:02:58.8]} 8... h6 {[%clk 0:03:09]} 9. Bh4 {[%clk 0:02:59.9]} 9... g5 {[%clk
0:03:10.7]} 10. Bg3 {[%clk 0:02:58.8]} 10... gxf4 {[%clk 0:03:00]} 11. Bxf4
{[%clk 0:02:59.6]} 11... Rg8 {[%clk 0:02:51.1]} 12. g3 {[%clk 0:03:00.6]} 12...
h5 {[%clk 0:02:45.7]} 13. Nf3 {[%clk 0:03:01.3]} 13... Be7 {[%clk 0:02:43.9]}
14. Qc2 {[%clk 0:02:57]} 14... Bg4 {[%clk 0:02:41.5]} 15. Nh4 {[%clk 0:02:52.9]}
15... Ne4 {[%clk 0:02:38.1]} 16. Bxe4 {[%clk 0:02:49.6]} 16... dxe4 {[%clk
0:02:34.2]} 17. Qxe4 {[%clk 0:02:48.3]} 17... Nf6 {[%clk 0:02:35]} 18. Qc2
{[%clk 0:02:36.9]} 18... Qd7 {[%clk 0:02:22.1]} 19. Rf1 {[%clk 0:02:28.9]} 19...
Nd5 {[%clk 0:02:19.4]} 20. Nf3 {[%clk 0:02:22.1]} 20... f6 {[%clk 0:01:57.2]}
21. O-O-O {[%clk 0:02:20.6]} 21... Nxf4 {[%clk 0:01:57.3]} 22. gxf4 {[%clk
0:02:12.8]} 22... O-O-O {[%clk 0:01:58.4]} 23. e4 {[%clk 0:02:10.5]} 23... Kb8
{[%clk 0:01:59.3]} 24. a3 {[%clk 0:02:08.6]} 24... Bd6 {[%clk 0:01:50.3]} 25. e5
{[%clk 0:02:09.2]} 25... Bc7 {[%clk 0:01:46.1]} 26. b4 {[%clk 0:01:53.7]} 26...
Bf5 {[%clk 0:01:43.2]} 27. Qe2 {[%clk 0:01:51.5]} 27... Rg4 {[%clk 0:01:37.6]}
28. Ne1 {[%clk 0:01:45.9]} 28... a5 {[%clk 0:01:29.1]} 29. Nc2 {[%clk
0:01:36.3]} 29... axb4 {[%clk 0:01:20.5]} 30. Nxb4 {[%clk 0:01:36.7]} 30... Qf7
{[%clk 0:01:19]} 31. Kb2 {[%clk 0:01:36]} 31... Bb6 {[%clk 0:01:18.7]} 32. d5
{[%clk 0:01:33.6]} 32... cxd5 {[%clk 0:01:14.9]} 33. Ncxd5 {[%clk 0:01:28]}
33... Bc5 {[%clk 0:01:15.6]} 34. Nxf6 {[%clk 0:01:09.3]} 34... Rxd1 {[%clk
0:01:15.2]} 35. Rxd1 {[%clk 0:01:06.2]} 35... Rxf4 {[%clk 0:01:13.4]} 36. Rd8+
{[%clk 0:00:42.4]} 36... Ka7 {[%clk 0:00:55.5]} 37. Rd2 {[%clk 0:00:43.1]} 37...
Bxb4 {[%clk 0:00:50.8]} 38. Qe3+ {[%clk 0:00:44]} 38... Kb8 {[%clk 0:00:38.1]}
39. Qxf4 {[%clk 0:00:43.2]} 39... Bxd2 {[%clk 0:00:39.3]} 40. Qxd2 {[%clk
0:00:42.7]} 40... Qc4 {[%clk 0:00:38.5]} 41. Nd5 {[%clk 0:00:13.7]} 41... Be6
{[%clk 0:00:31.5]} 42. Nc3 {[%clk 0:00:07.4]} 42... Qb3+ {[%clk 0:00:32.3]} 43.
Kc1 {[%clk 0:00:08.9]} 43... Qxa3+ {[%clk 0:00:33.6]} 44. Kd1 {[%clk 0:00:10.4]}
44... Bg4+ {[%clk 0:00:34.2]} 45. Ke1 {[%clk 0:00:11.8]} 45... Qc5 {[%clk
0:00:32]} 46. Qd6+ {[%clk 0:00:10.8]} 46... Qxd6 {[%clk 0:00:33.2]} 47. exd6
{[%clk 0:00:12.7]} 47... Kc8 {[%clk 0:00:34.3]} 48. Ne4 {[%clk 0:00:13.8]} 48...
Bf5 {[%clk 0:00:33.3]} 49. Nf6 {[%clk 0:00:13.6]} 49... h4 {[%clk 0:00:30]} 50.
Kd2 {[%clk 0:00:15.1]} 50... b5 {[%clk 0:00:30.5]} 51. Kc3 {[%clk 0:00:16.6]}
51... Kb7 {[%clk 0:00:32.1]} 52. Kb4 {[%clk 0:00:18]} 52... Kc6 {[%clk
0:00:33.5]} 53. d7 {[%clk 0:00:19.4]} 53... Bxd7 {[%clk 0:00:34.2]} 54. Nxd7
{[%clk 0:00:21]} 54... Kxd7 {[%clk 0:00:35.9]} 55. Kxb5 {[%clk 0:00:22.7]} 55...
Kd6 {[%clk 0:00:37.6]} 56. Kc4 {[%clk 0:00:24.6]} 56... Ke5 {[%clk 0:00:39.2]}
57. Kd3 {[%clk 0:00:26.5]} 57... Kf4 {[%clk 0:00:40.8]} 58. Ke2 {[%clk
0:00:28.4]} 58... Ke4 {[%clk 0:00:42.3]} 59. Kf2 {[%clk 0:00:29.7]} 59... Kf4
{[%clk 0:00:43.8]} 60. Kg2 {[%clk 0:00:31.3]} 60... Kg4 {[%clk 0:00:45]} 61. Kf2
{[%clk 0:00:32.9]} 61... Kh3 {[%clk 0:00:44.6]} 62. Kg1 {[%clk 0:00:34.1]}
1/2-1/2

[Event "*** Titled Tuesday Blitz"]
[Site "Chess.com"]
[Date "2020.01.07"]
[Round "3"]
[White "ExcitingTrap"]
[Black "Kostina_Nadezhda"]
[Result "0-1"]
[WhiteElo "2310"]
[BlackElo "2126"]
[TimeControl "180+2"]
[EndTime "13:40:26 PST"]
[Termination "Kostina_Nadezhda won by checkmate"]

1. e4 {[%clk 0:03:01.9]} 1... c5 {[%clk 0:02:59.5]} 2. Nf3 {[%clk 0:03:02.5]}
2... Nc6 {[%clk 0:02:59.8]} 3. Bb5 {[%clk 0:03:03.7]} 3... d6 {[%clk 0:02:58.9]}
4. Bxc6+ {[%clk 0:02:54.9]} 4... bxc6 {[%clk 0:02:59.2]} 5. O-O {[%clk
0:02:56.6]} 5... e5 {[%clk 0:02:58.9]} 6. c3 {[%clk 0:02:55.5]} 6... Nf6 {[%clk
0:02:58.1]} 7. d4 {[%clk 0:02:54]} 7... cxd4 {[%clk 0:02:57.2]} 8. cxd4 {[%clk
0:02:55.9]} 8... exd4 {[%clk 0:02:56.4]} 9. Qxd4 {[%clk 0:02:52.3]} 9... Be7
{[%clk 0:02:55.6]} 10. Bf4 {[%clk 0:02:48]} 10... O-O {[%clk 0:02:53.3]} 11. Nc3
{[%clk 0:02:49.4]} 11... Bg4 {[%clk 0:02:51.6]} 12. Rad1 {[%clk 0:02:39.8]}
12... Bxf3 {[%clk 0:02:43.2]} 13. gxf3 {[%clk 0:02:41.7]} 13... Ne8 {[%clk
0:02:38]} 14. Kh1 {[%clk 0:02:38.6]} 14... Rb8 {[%clk 0:02:30.8]} 15. Rg1 {[%clk
0:02:36.5]} 15... Rxb2 {[%clk 0:02:22.7]} 16. Nd5 {[%clk 0:02:31.6]} 16... Rxa2
{[%clk 0:02:06.5]} 17. Nxe7+ {[%clk 0:02:29.4]} 17... Qxe7 {[%clk 0:02:07.2]}
18. Bxd6 {[%clk 0:02:30]} 18... Qxd6 {[%clk 0:01:53.6]} 19. Rxg7+ {[%clk
0:02:23.4]} 19... Kh8 {[%clk 0:01:54.9]} 20. Qc3 {[%clk 0:01:32]} 20... Qxd1+
{[%clk 0:01:51.3]} 21. Rg1+ {[%clk 0:01:33]} 21... f6 {[%clk 0:01:48]} 22. Rxd1
{[%clk 0:01:33.5]} 22... Rxf2 {[%clk 0:01:48.2]} 23. Qxc6 {[%clk 0:01:31.2]}
23... Rxf3 {[%clk 0:01:47.3]} 24. e5 {[%clk 0:01:28.3]} 24... fxe5 {[%clk
0:01:47.1]} 25. Rd8 {[%clk 0:01:07.3]} 25... Ng7 {[%clk 0:01:30.2]} 26. Ra8
{[%clk 0:00:48.6]} 26... Rf1+ {[%clk 0:01:23.8]} 27. Kg2 {[%clk 0:00:49.3]}
27... Rf2+ {[%clk 0:01:24.7]} 28. Kh3 {[%clk 0:00:48.7]} 28... Kg8 {[%clk
0:01:13.2]} 29. Qd5+ {[%clk 0:00:37.6]} 29... Kh8 {[%clk 0:01:12.7]} 30. Rxf8+
{[%clk 0:00:20]} 30... Rxf8 {[%clk 0:01:13]} 31. Qxe5 {[%clk 0:00:20.5]} 31...
Re8 {[%clk 0:01:09.1]} 32. Qa5 {[%clk 0:00:15.9]} 32... Re3+ {[%clk 0:01:04.4]}
33. Kg4 {[%clk 0:00:15.4]} 33... Re7 {[%clk 0:01:00.2]} 34. Qd8+ {[%clk
0:00:14.9]} 34... Re8 {[%clk 0:01:01.2]} 35. Qa5 {[%clk 0:00:12]} 35... Re7
{[%clk 0:01:01.6]} 36. Kg5 {[%clk 0:00:12.8]} 36... Kg8 {[%clk 0:01:01.3]} 37.
Qd8+ {[%clk 0:00:09.6]} 37... Kf7 {[%clk 0:00:59.9]} 38. Qd5+ {[%clk 0:00:09.3]}
38... Kf8 {[%clk 0:00:59.7]} 39. Kf6 {[%clk 0:00:05.9]} 39... Re6+ {[%clk
0:00:55.6]} 40. Kg5 {[%clk 0:00:06]} 40... Rg6+ {[%clk 0:00:54]} 41. Kh4 {[%clk
0:00:06.3]} 41... a6 {[%clk 0:00:51]} 42. Qd8+ {[%clk 0:00:05.8]} 42... Ne8
{[%clk 0:00:49.4]} 43. Qd7 {[%clk 0:00:05.9]} 43... Rh6+ {[%clk 0:00:36.3]} 44.
Kg5 {[%clk 0:00:06.2]} 44... Rg6+ {[%clk 0:00:37]} 45. Kf4 {[%clk 0:00:07.1]}
45... Rf6+ {[%clk 0:00:33.4]} 46. Ke5 {[%clk 0:00:07.4]} 46... Rf7 {[%clk
0:00:31.7]} 47. Qd3 {[%clk 0:00:06.9]} 47... Re7+ {[%clk 0:00:28.2]} 48. Kf4
{[%clk 0:00:07.7]} 48... a5 {[%clk 0:00:26.3]} 49. Kg5 {[%clk 0:00:06.5]} 49...
Re5+ {[%clk 0:00:20.3]} 50. Kh6 {[%clk 0:00:06.7]} 50... Re6+ {[%clk 0:00:17.7]}
51. Kxh7 {[%clk 0:00:07]} 51... Nd6 {[%clk 0:00:12.8]} 52. h4 {[%clk 0:00:05.3]}
52... Nf7 {[%clk 0:00:11.7]} 53. Qf3 {[%clk 0:00:03]} 53... Rh6# {[%clk
0:00:11.5]} 0-1

[Event "*** Titled Tuesday Blitz"]
[Site "Chess.com"]
[Date "2020.01.07"]
[Round "3"]
[White "FearNoEvil12"]
[Black "ketster"]
[Result "1/2-1/2"]
[WhiteElo "2032"]
[BlackElo "2303"]
[TimeControl "180+2"]
[EndTime "13:40:32 PST"]
[Termination "Game drawn by repetition"]

1. e4 {[%clk 0:03:00.7]} 1... e5 {[%clk 0:02:59.9]} 2. d4 {[%clk 0:03:01.4]}
2... exd4 {[%clk 0:03:00.4]} 3. Bc4 {[%clk 0:03:02.9]} 3... Nc6 {[%clk
0:02:53.2]} 4. Nf3 {[%clk 0:03:04.1]} 4... Nf6 {[%clk 0:02:51.3]} 5. e5 {[%clk
0:03:05.1]} 5... d5 {[%clk 0:02:51.9]} 6. Bb5 {[%clk 0:03:06.4]} 6... Ne4 {[%clk
0:02:52.2]} 7. Nxd4 {[%clk 0:03:07.8]} 7... Bd7 {[%clk 0:02:53.5]} 8. Bxc6
{[%clk 0:03:09]} 8... bxc6 {[%clk 0:02:55.4]} 9. O-O {[%clk 0:03:09.6]} 9... Bc5
{[%clk 0:02:56.1]} 10. f3 {[%clk 0:03:11.1]} 10... Ng5 {[%clk 0:02:56.7]} 11. f4
{[%clk 0:03:12.7]} 11... Ne4 {[%clk 0:02:57.7]} 12. Nc3 {[%clk 0:03:13.6]} 12...
Nxc3 {[%clk 0:02:55.2]} 13. bxc3 {[%clk 0:03:15.5]} 13... Bb6 {[%clk 0:02:56.1]}
14. Be3 {[%clk 0:03:14.7]} 14... Qe7 {[%clk 0:02:49.3]} 15. Qd2 {[%clk
0:03:15.4]} 15... O-O {[%clk 0:02:43.1]} 16. Rae1 {[%clk 0:03:16.3]} 16... c5
{[%clk 0:02:43]} 17. Ne2 {[%clk 0:03:15.3]} 17... c6 {[%clk 0:02:33.5]} 18. Ng3
{[%clk 0:03:09.7]} 18... f6 {[%clk 0:02:28.7]} 19. Bf2 {[%clk 0:02:57.2]} 19...
Rad8 {[%clk 0:02:23.5]} 20. e6 {[%clk 0:02:54.1]} 20... Bc8 {[%clk 0:02:12.2]}
21. f5 {[%clk 0:02:55.6]} 21... Ba6 {[%clk 0:02:09.4]} 22. Nh5 {[%clk
0:02:47.2]} 22... Bxf1 {[%clk 0:02:09.1]} 23. Rxf1 {[%clk 0:02:47.3]} 23... d4
{[%clk 0:02:08.8]} 24. c4 {[%clk 0:02:46.5]} 24... g6 {[%clk 0:01:57.6]} 25. Ng3
{[%clk 0:02:25.5]} 25... Bc7 {[%clk 0:01:55]} 26. Re1 {[%clk 0:02:24.7]} 26...
Rde8 {[%clk 0:01:41.3]} 27. Qh6 {[%clk 0:02:07.1]} 27... Qg7 {[%clk 0:01:41.1]}
28. Qh3 {[%clk 0:01:45.9]} 28... Re7 {[%clk 0:01:34.8]} 29. Ne4 {[%clk
0:01:43.4]} 29... Bb6 {[%clk 0:01:24]} 30. Bh4 {[%clk 0:01:42.2]} 30... Ree8
{[%clk 0:00:58]} 31. Qg3 {[%clk 0:01:23.8]} 31... Bc7 {[%clk 0:00:46.4]} 32. Qf3
{[%clk 0:01:23.4]} 32... Be5 {[%clk 0:00:33.9]} 33. Nxc5 {[%clk 0:01:21.9]}
33... gxf5 {[%clk 0:00:32.1]} 34. Qxf5 {[%clk 0:01:19.3]} 34... Qg6 {[%clk
0:00:33]} 35. Qh3 {[%clk 0:01:01.8]} 35... Kh8 {[%clk 0:00:31.6]} 36. Nd7 {[%clk
0:00:46.3]} 36... Rg8 {[%clk 0:00:31.8]} 37. Nxe5 {[%clk 0:00:45.7]} 37... fxe5
{[%clk 0:00:32]} 38. e7 {[%clk 0:00:46.6]} 38... e4 {[%clk 0:00:15]} 39. Rf1
{[%clk 0:00:33.3]} 39... h6 {[%clk 0:00:13.7]} 40. Bf6+ {[%clk 0:00:32.8]} 40...
Kh7 {[%clk 0:00:13.9]} 41. g3 {[%clk 0:00:19.9]} 41... e3 {[%clk 0:00:14.2]} 42.
Bxd4 {[%clk 0:00:15.7]} 42... e2 {[%clk 0:00:14.1]} 43. Re1 {[%clk 0:00:15.7]}
43... Rxe7 {[%clk 0:00:15.1]} 44. Qg2 {[%clk 0:00:14.9]} 44... Rge8 {[%clk
0:00:15.2]} 45. c3 {[%clk 0:00:14.2]} 45... Qd3 {[%clk 0:00:14.4]} 46. Qf2
{[%clk 0:00:16.1]} 46... Qxc4 {[%clk 0:00:09.7]} 47. Qf5+ {[%clk 0:00:16.1]}
47... Kg8 {[%clk 0:00:08.3]} 48. Qg6+ {[%clk 0:00:16.8]} 48... Kf8 {[%clk
0:00:09.2]} 49. Qxh6+ {[%clk 0:00:12.9]} 49... Kg8 {[%clk 0:00:08.9]} 50. Qg6+
{[%clk 0:00:13.1]} 50... Kf8 {[%clk 0:00:09.3]} 51. Qh6+ {[%clk 0:00:13.9]}
51... Kg8 {[%clk 0:00:10.5]} 52. Qg6+ {[%clk 0:00:07.3]} 52... Kf8 {[%clk
0:00:11]} 53. Qh6+ {[%clk 0:00:08.2]} 1/2-1/2

[Event "*** Titled Tuesday Blitz"]
[Site "Chess.com"]
[Date "2020.01.07"]
[Round "3"]
[White "chigorin28"]
[Black "bascheyaro"]
[Result "1-0"]
[WhiteElo "2448"]
[BlackElo "2669"]
[TimeControl "180+2"]
[EndTime "13:40:34 PST"]
[Termination "chigorin28 won by resignation"]

1. e4 {[%clk 0:03:01.9]} 1... e6 {[%clk 0:02:52.1]} 2. d4 {[%clk 0:03:01.8]}
2... d5 {[%clk 0:02:54]} 3. exd5 {[%clk 0:03:02.4]} 3... exd5 {[%clk 0:02:55.3]}
4. Bd3 {[%clk 0:03:04.3]} 4... c5 {[%clk 0:02:55.9]} 5. dxc5 {[%clk 0:03:04.6]}
5... Bxc5 {[%clk 0:02:57.8]} 6. Ne2 {[%clk 0:03:06.1]} 6... Nf6 {[%clk
0:02:58.9]} 7. O-O {[%clk 0:03:05.8]} 7... O-O {[%clk 0:03:00.5]} 8. Nbc3 {[%clk
0:03:06]} 8... h6 {[%clk 0:03:01.6]} 9. Bf4 {[%clk 0:03:02.4]} 9... Nc6 {[%clk
0:03:02.1]} 10. Qd2 {[%clk 0:03:01.1]} 10... Re8 {[%clk 0:02:59.4]} 11. h3
{[%clk 0:02:58.9]} 11... d4 {[%clk 0:02:49.8]} 12. Nb5 {[%clk 0:02:59.8]} 12...
Nd5 {[%clk 0:02:40.3]} 13. Bg3 {[%clk 0:03:00.9]} 13... a6 {[%clk 0:02:39.8]}
14. c4 {[%clk 0:03:02.4]} 14... axb5 {[%clk 0:01:58.1]} 15. cxd5 {[%clk
0:03:02.9]} 15... Qxd5 {[%clk 0:01:59.2]} 16. Bxb5 {[%clk 0:02:55.1]} 16... Bf5
{[%clk 0:01:51.6]} 17. Nf4 {[%clk 0:02:44.9]} 17... Qd7 {[%clk 0:01:48]} 18. a3
{[%clk 0:01:09.6]} 18... Be7 {[%clk 0:01:44.2]} 19. Rad1 {[%clk 0:01:10.2]}
19... Bf6 {[%clk 0:01:40.8]} 20. Rfe1 {[%clk 0:01:10.4]} 20... Rxe1+ {[%clk
0:01:31.3]} 21. Qxe1 {[%clk 0:01:12.3]} 21... Rd8 {[%clk 0:01:31.5]} 22. Nd3
{[%clk 0:01:09]} 22... Qd5 {[%clk 0:01:29.6]} 23. a4 {[%clk 0:01:10.4]} 23...
Na7 {[%clk 0:01:19.6]} 24. Nf4 {[%clk 0:01:11.5]} 24... Qb3 {[%clk 0:01:19]} 25.
Bd3 {[%clk 0:01:09.3]} 25... Bxd3 {[%clk 0:01:17.1]} 26. Nxd3 {[%clk 0:01:10.6]}
26... Qxa4 {[%clk 0:01:16.2]} 27. Rc1 {[%clk 0:01:09.7]} 27... Qb5 {[%clk
0:01:14.7]} 28. Qd1 {[%clk 0:01:11.2]} 28... Nc6 {[%clk 0:01:12.9]} 29. Rc5
{[%clk 0:01:09.8]} 29... Qa6 {[%clk 0:01:13.9]} 30. Qb3 {[%clk 0:01:10.2]} 30...
Re8 {[%clk 0:01:09.6]} 31. Kh2 {[%clk 0:01:11.4]} 31... Re2 {[%clk 0:00:57.1]}
32. Rb5 {[%clk 0:01:10]} 32... Re7 {[%clk 0:00:23.4]} 33. Rd5 {[%clk 0:01:10.7]}
33... Re8 {[%clk 0:00:23.5]} 34. Qc2 {[%clk 0:01:05.6]} 34... Qb6 {[%clk
0:00:23.4]} 35. Rc5 {[%clk 0:01:04.1]} 35... Qd8 {[%clk 0:00:22.4]} 36. Qc4
{[%clk 0:01:03.9]} 36... Qe7 {[%clk 0:00:23.5]} 37. Qb3 {[%clk 0:01:02.4]} 37...
Qd7 {[%clk 0:00:22.5]} 38. Rc1 {[%clk 0:01:03.2]} 38... h5 {[%clk 0:00:20.7]}
39. h4 {[%clk 0:01:03.2]} 39... Qg4 {[%clk 0:00:21.3]} 40. Qxb7 {[%clk
0:01:01.4]} 40... Ne7 {[%clk 0:00:22.7]} 41. Qb5 {[%clk 0:00:58.4]} 41... Rd8
{[%clk 0:00:23.6]} 42. f3 {[%clk 0:00:58.1]} 42... Qg6 {[%clk 0:00:24.1]} 43.
Re1 {[%clk 0:00:53.3]} 43... Qf5 {[%clk 0:00:23.3]} 44. Qxf5 {[%clk 0:00:50.9]}
44... Nxf5 {[%clk 0:00:25.2]} 45. b4 {[%clk 0:00:50.7]} 45... Bxh4 {[%clk
0:00:23.9]} 46. Bxh4 {[%clk 0:00:48.8]} 46... Nxh4 {[%clk 0:00:25.8]} 47. b5
{[%clk 0:00:50.6]} 47... Nf5 {[%clk 0:00:27]} 48. b6 {[%clk 0:00:48.7]} 48...
Rb8 {[%clk 0:00:28.1]} 49. Rb1 {[%clk 0:00:49.4]} 49... Nd6 {[%clk 0:00:28.3]}
50. Nc5 {[%clk 0:00:49.9]} 50... f6 {[%clk 0:00:29.2]} 51. Na6 {[%clk
0:00:47.4]} 51... Rb7 {[%clk 0:00:29.9]} 52. Nc5 {[%clk 0:00:46.2]} 52... Rb8
{[%clk 0:00:31.2]} 53. Kg3 {[%clk 0:00:45]} 53... Kf7 {[%clk 0:00:32.1]} 54. b7
{[%clk 0:00:43.8]} 54... d3 {[%clk 0:00:32.3]} 55. Kf2 {[%clk 0:00:43.1]} 55...
h4 {[%clk 0:00:28]} 56. Ke3 {[%clk 0:00:44.2]} 56... Ke7 {[%clk 0:00:21.5]} 57.
Kxd3 {[%clk 0:00:45.2]} 57... Kd8 {[%clk 0:00:22.9]} 58. Kd4 {[%clk 0:00:44.5]}
58... Kc7 {[%clk 0:00:24.1]} 59. Kd5 {[%clk 0:00:45.2]} 59... Rxb7 {[%clk
0:00:16.5]} 60. Nxb7 {[%clk 0:00:46.1]} 60... Nxb7 {[%clk 0:00:18.3]} 61. Ke6
{[%clk 0:00:47.5]} 61... Nc5+ {[%clk 0:00:18.8]} 62. Kf7 {[%clk 0:00:48.9]}
62... Kd6 {[%clk 0:00:20.2]} 63. Kxg7 {[%clk 0:00:50.1]} 63... Ke6 {[%clk
0:00:19.1]} 64. Kg6 {[%clk 0:00:49]} 64... Nd3 {[%clk 0:00:20.1]} 65. Kh5 {[%clk
0:00:49.4]} 65... Nf4+ {[%clk 0:00:20.5]} 66. Kxh4 {[%clk 0:00:49.9]} 66...
Nxg2+ {[%clk 0:00:22.4]} 67. Kg3 {[%clk 0:00:50.7]} 1-0

[Event "*** Titled Tuesday Blitz"]
[Site "Chess.com"]
[Date "2020.01.07"]
[Round "3"]
[White "Mostii"]
[Black "joejan"]
[Result "0-1"]
[WhiteElo "2514"]
[BlackElo "2152"]
[TimeControl "180+2"]
[EndTime "13:40:37 PST"]
[Termination "joejan won by checkmate"]

1. d4 {[%clk 0:03:01.9]} 1... Nf6 {[%clk 0:03:00.1]} 2. Nf3 {[%clk 0:03:02.1]}
2... e6 {[%clk 0:03:01.4]} 3. g3 {[%clk 0:03:03.4]} 3... b6 {[%clk 0:03:01.2]}
4. Bg2 {[%clk 0:03:04.8]} 4... Bb7 {[%clk 0:03:02.8]} 5. O-O {[%clk 0:03:06.4]}
5... Be7 {[%clk 0:03:03.3]} 6. b3 {[%clk 0:03:08]} 6... O-O {[%clk 0:03:02.6]}
7. Bb2 {[%clk 0:03:09.3]} 7... d6 {[%clk 0:03:03.8]} 8. Nbd2 {[%clk 0:03:10.8]}
8... Nbd7 {[%clk 0:03:05.2]} 9. c4 {[%clk 0:03:11.6]} 9... a5 {[%clk 0:03:05.6]}
10. Re1 {[%clk 0:03:07.3]} 10... a4 {[%clk 0:03:03.8]} 11. e4 {[%clk 0:03:07.2]}
11... a3 {[%clk 0:02:57.4]} 12. Bc3 {[%clk 0:03:07.8]} 12... d5 {[%clk
0:02:26.3]} 13. exd5 {[%clk 0:03:06.7]} 13... exd5 {[%clk 0:02:26.2]} 14. Ne5
{[%clk 0:03:06.8]} 14... Re8 {[%clk 0:02:22.9]} 15. Rc1 {[%clk 0:02:56.4]} 15...
c5 {[%clk 0:02:20.6]} 16. dxc5 {[%clk 0:02:21.3]} 16... Bxc5 {[%clk 0:02:13.7]}
17. Nxd7 {[%clk 0:02:18.3]} 17... Rxe1+ {[%clk 0:02:07.8]} 18. Qxe1 {[%clk
0:02:18.5]} 18... Qxd7 {[%clk 0:02:09.7]} 19. Bxf6 {[%clk 0:02:17.7]} 19... Re8
{[%clk 0:01:50.7]} 20. Qd1 {[%clk 0:01:59.5]} 20... gxf6 {[%clk 0:01:50.4]} 21.
Ne4 {[%clk 0:01:44.5]} 21... Qf5 {[%clk 0:01:35.2]} 22. Nxc5 {[%clk 0:01:31.5]}
22... bxc5 {[%clk 0:01:35.2]} 23. cxd5 {[%clk 0:01:32.4]} 23... Ba6 {[%clk
0:01:29.2]} 24. d6 {[%clk 0:01:26.5]} 24... Re2 {[%clk 0:01:26.9]} 25. Qf1
{[%clk 0:01:11.8]} 25... Rc2 {[%clk 0:01:26.6]} 26. Rxc2 {[%clk 0:00:38.8]}
26... Bxf1 {[%clk 0:01:26]} 27. d7 {[%clk 0:00:39.8]} 27... Qxd7 {[%clk
0:01:22.4]} 28. Bxf1 {[%clk 0:00:40.6]} 28... Qd4 {[%clk 0:01:19.5]} 29. h4
{[%clk 0:00:38.7]} 29... Kg7 {[%clk 0:01:18.2]} 30. Re2 {[%clk 0:00:38.1]} 30...
c4 {[%clk 0:01:09.1]} 31. bxc4 {[%clk 0:00:37.6]} 31... Qxc4 {[%clk 0:01:10.1]}
32. Rd2 {[%clk 0:00:38]} 32... Qc3 {[%clk 0:01:10.6]} 33. Re2 {[%clk 0:00:37.5]}
33... f5 {[%clk 0:01:11.2]} 34. Re3 {[%clk 0:00:38.5]} 34... Qc1 {[%clk
0:01:07.3]} 35. Kg2 {[%clk 0:00:35]} 35... f4 {[%clk 0:01:03.7]} 36. gxf4 {[%clk
0:00:36.9]} 36... Qc6+ {[%clk 0:01:02.8]} 37. Kh2 {[%clk 0:00:33.6]} 37... Qd6
{[%clk 0:01:00.5]} 38. Kg3 {[%clk 0:00:31.7]} 38... Kf6 {[%clk 0:00:59.3]} 39.
Kf3 {[%clk 0:00:27.8]} 39... Qd5+ {[%clk 0:00:58.4]} 40. Kg3 {[%clk 0:00:23.2]}
40... Qxa2 {[%clk 0:00:58.3]} 41. Bd3 {[%clk 0:00:17.7]} 41... Qb3 {[%clk
0:00:52]} 42. Bxh7 {[%clk 0:00:09]} 42... Qxe3+ {[%clk 0:00:52]} 43. fxe3 {[%clk
0:00:10.9]} 43... a2 {[%clk 0:00:53.4]} 44. Be4 {[%clk 0:00:11.1]} 44... a1=Q
{[%clk 0:00:53.2]} 45. Bg2 {[%clk 0:00:11.7]} 45... Qe1+ {[%clk 0:00:48.7]} 46.
Kf3 {[%clk 0:00:12.7]} 46... Qxh4 {[%clk 0:00:49.1]} 47. Bf1 {[%clk 0:00:12.5]}
47... Qh5+ {[%clk 0:00:46]} 48. Kf2 {[%clk 0:00:12]} 48... Ke6 {[%clk
0:00:40.4]} 49. Bc4+ {[%clk 0:00:12.5]} 49... Kd6 {[%clk 0:00:40.9]} 50. Be2
{[%clk 0:00:12.4]} 50... Qh4+ {[%clk 0:00:40.1]} 51. Kf3 {[%clk 0:00:13.5]}
51... Kd5 {[%clk 0:00:39.9]} 52. Bd3 {[%clk 0:00:13.3]} 52... Qh3+ {[%clk
0:00:36.7]} 53. Kf2 {[%clk 0:00:14.5]} 53... f5 {[%clk 0:00:36.3]} 54. Bf1
{[%clk 0:00:09.6]} 54... Qh2+ {[%clk 0:00:36.1]} 55. Bg2+ {[%clk 0:00:10.8]}
55... Kc4 {[%clk 0:00:36.8]} 56. Kf3 {[%clk 0:00:10]} 56... Kc3 {[%clk
0:00:33.3]} 57. Bf1 {[%clk 0:00:10.3]} 57... Kd2 {[%clk 0:00:33.9]} 58. Bg2
{[%clk 0:00:08.6]} 58... Qg1 {[%clk 0:00:31.1]} 59. Kg3 {[%clk 0:00:09.5]} 59...
Kxe3 {[%clk 0:00:30]} 60. Kh3 {[%clk 0:00:06.9]} 60... Kxf4 {[%clk 0:00:28.7]}
61. Bc6 {[%clk 0:00:06.9]} 61... Qg3# {[%clk 0:00:27.9]} 0-1